bitfinex/quotes_ETHUSD_20250924
["timestamp","ask_amount","ask_price","bid_price","bid_amount"]
[1758696924893,2.90142152,4189.2,4189.1,3.0]
[1758696925373,2.90242152,4189.2,4189.1,3.0]
[1758696926205,2.90243227,4189.2,4189.1,3.987]
[1758696926401,2.90243227,4189.2,4189.1,6.987]
[1758696927622,2.90243227,4189.2,4189.1,3.0]
[1758696927800,2.90243227,4189.2,4189.1,6.987]
[1758696928199,3.57964417,4189.2,4189.1,3.0]
[1758696928498,3.65354417,4189.2,4189.1,3.0]
[1758696928898,3.57964417,4189.2,4189.1,3.0]
[1758696933723,1.19254281,4189.2,4189.1,3.0]
[1758696934011,0.51533091,4189.2,4189.1,7.6571]
[1758696934603,0.51533091,4189.2,4189.1,6.985]
[1758696934604,2.90242152,4189.2,4189.1,6.985]
[1758696934815,2.90242152,4189.2,4189.1,3.0]
[1758696935048,3.02162152,4189.2,4189.1,6.985]
[1758696935355,3.02162152,4189.2,4189.1,3.0]
[1758696936149,4.09733958,4189.2,4189.1,3.0]
[1758696940543,1.71024897,4189.2,4189.1,3.0]
[1758696940760,4.09733958,4189.2,4189.1,3.0]
[1758696941518,1.71024897,4189.2,4189.1,3.0]
[1758696941954,3.02162152,4189.2,4189.1,3.6995]
[1758696942463,3.66631121,4189.2,4189.1,3.6995]
[1758696943229,3.66631121,4189.2,4189.1,3.0]
[1758696943762,1.2792206,4189.2,4189.1,3.0]
[1758696944128,1.2792206,4189.2,4189.1,3.2476]
[1758696944957,1.2792206,4189.2,4189.1,3.004]
[1758696945128,1.2792206,4189.2,4189.1,3.7035]
[1758696945530,0.63453091,4189.2,4189.1,3.7035]
[1758696945945,0.63453091,4189.2,4189.1,3.004]
[1758696946980,3.02162152,4189.2,4189.1,6.987]
[1758696947130,3.48132464,4189.2,4189.1,3.004]
[1758696947859,3.48052464,4189.2,4189.1,3.004]
[1758696948345,3.02082152,4189.2,4189.1,3.004]
[1758696953859,3.95134434,4189.2,4189.1,3.004]
[1758696954043,3.87744434,4189.2,4189.1,3.004]
[1758696961683,3.02082152,4189.2,4189.1,3.004]
[1758696962750,3.88121922,4189.2,4189.1,3.004]
[1758696962953,5.11475115,4189.2,4189.1,3.004]
[1758696964534,2.60846054,4189.2,4189.1,3.004]
[1758696964707,1.37492861,4189.2,4189.1,3.7035]
[1758696965594,3.76201922,4189.2,4189.1,3.7035]
[1758696966402,1.37492861,4189.2,4189.1,3.7035]
[1758696966823,3.76201922,4189.2,4189.1,3.7035]
[1758696972420,3.76201922,4189.2,4189.1,3.004]
[1758696973154,3.76201922,4189.2,4189.1,3.7038]
[1758696974831,3.76121922,4189.2,4189.1,3.7038]
[1758696975837,1.37412861,4189.2,4189.1,3.7038]
[1758696976036,3.76121922,4189.2,4189.1,3.7038]
[1758696977875,0.51373091,4189.2,4189.1,3.7038]
[1758696979849,0.51373091,4189.2,4189.1,3.72767147]
[1758696981381,1.15902588,4189.2,4189.1,3.7038]
[1758696981586,3.54611649,4189.2,4189.1,3.004]
[1758696981988,3.54611649,4189.2,4189.1,6.984]
[1758696981989,2.90082152,4189.2,4189.1,6.984]
[1758696988365,3.51574474,4189.2,4189.1,6.984]
[1758696989376,2.90082152,4189.2,4189.1,6.984]
[1758696992207,0.51373091,4189.2,4189.1,7.6749]
[1758696992808,2.90082152,4189.2,4189.1,7.6749]
[1758696992995,2.90082152,4189.2,4189.1,6.984]
[1758696994303,2.90082152,4189.2,4189.1,3.004]
[1758696994510,1.12865187,4189.2,4189.1,3.004]
[1758696994717,2.90082152,4189.2,4189.1,3.2495]
[1758696994904,0.51373091,4189.2,4189.1,3.2495]
[1758696995215,2.90082152,4189.2,4189.1,3.2495]
[1758696995592,2.90082152,4189.2,4189.1,3.6949]
[1758696996314,0.51373091,4189.2,4189.1,3.6949]
[1758696996495,2.90082152,4189.2,4189.1,3.6949]
[1758696996816,0.51373091,4189.2,4189.1,3.6949]
[1758696997814,2.90082152,4189.2,4189.1,3.6949]
[1758696998416,0.51373091,4189.2,4189.1,3.6949]
[1758696999614,2.90082152,4189.2,4189.1,3.6949]
[1758697000322,0.51373091,4189.2,4189.1,3.6949]
[1758697001023,2.90082152,4189.2,4189.1,3.6949]
[1758697001198,0.51373091,4189.2,4189.1,3.6949]
[1758697002120,0.51293091,4189.2,4189.1,3.6949]
[1758697003596,0.51293091,4189.2,4189.1,3.004]
[1758697003925,0.51293091,4189.2,4189.1,3.7148]
[1758697005014,2.90002152,4189.2,4189.1,3.7148]
[1758697005212,0.51293091,4189.2,4189.1,3.7148]
[1758697005420,0.51293091,4189.2,4189.1,3.2494]
[1758697005596,2.90002152,4189.2,4189.1,3.004]
[1758697005801,0.51293091,4189.2,4189.1,3.004]
[1758697006202,0.51293091,4189.2,4189.1,3.2494]
[1758697006524,2.90002152,4189.2,4189.1,3.2494]
[1758697007034,0.51293091,4189.2,4189.1,3.004]
[1758697007331,0.51293091,4189.2,4189.1,3.7148]
[1758697007530,0.51293091,4189.2,4189.1,18.2148]
[1758697012639,0.51293091,4189.2,4189.1,3.004]
[1758697012799,3.12116198,4189.2,4189.1,6.983]
[1758697013401,3.19506198,4189.2,4189.1,3.004]
[1758697014118,3.12116198,4189.2,4189.1,3.004]
[1758697016539,3.91316198,4189.2,4189.1,0.004]
[1758697016722,4.41196784,4189.2,4189.1,0.004]
[1758697019135,8.39096784,4189.2,4189.1,0.004]
[1758697019335,3.12116198,4189.2,4189.1,0.004]
[1758697020553,3.12116198,4189.2,4189.1,0.7148]
[1758697021232,2.90002152,4189.2,4189.1,0.7148]
[1758697022329,3.75992282,4189.2,4189.1,0.7148]
[1758697026369,3.75992282,4189.2,4189.1,0.004]
[1758697027970,3.75992282,4189.2,4189.1,0.2494]
[1758697028437,3.75992282,4189.2,4189.1,0.7148]
[1758697029080,3.75912282,4189.2,4189.1,0.7148]
[1758697031671,3.24799191,4189.2,4189.1,0.7148]
[1758697032056,2.38809061,4189.2,4189.1,0.7148]
[1758697032475,3.24792535,4189.2,4189.1,0.7148]
[1758697033877,4.10774352,4189.2,4189.1,0.7148]
[1758697034241,3.24792535,4189.2,4189.1,0.7148]
[1758697035894,3.24792535,4189.2,4189.1,8.8308313]
[1758697035895,1.50567469,4189.2,4189.1,8.8308313]
[1758697036068,0.86083474,4189.2,4189.1,10.05284759]
[1758697036272,0.86083474,4189.2,4189.1,24.55284759]
[1758697036665,0.86083474,4189.2,4189.1,30.19933723]
[1758697037166,0.86083474,4189.2,4189.1,27.81218964]
[1758697037364,0.86083474,4189.2,4189.1,30.19933723]
[1758697039000,0.86083474,4189.2,4189.1,22.1657]
[1758697041902,0.86083474,4189.2,4189.1,24.55284759]
[1758697042884,0.86083474,4189.2,4189.1,17.504]
[1758697043096,0.86083474,4189.2,4189.1,22.1647]
[1758697043496,0.86083474,4189.2,4189.1,21.482]
[1758697043696,0.86083474,4189.2,4189.1,22.1647]
[1758697044472,0.86083474,4189.2,4189.1,21.482]
[1758697044878,0.86083474,4189.2,4189.1,22.1647]
[1758697045608,0.86083474,4189.2,4189.1,24.55184759]
[1758697046006,0.86083474,4189.2,4189.1,22.2839]
[1758697046699,0.86083474,4189.2,4189.1,24.67104759]
[1758697053234,0.86083474,4189.2,4189.1,22.2839]
[1758697053738,0.86083474,4189.2,4189.1,24.67104759]
[1758697056197,0.86003474,4189.2,4189.1,24.67104759]
[1758697057928,0.86003474,4189.2,4189.1,22.2839]
[1758697060755,0.86003474,4189.2,4189.1,24.67104759]
[1758697061122,0.86003474,4189.2,4189.1,22.2839]
[1758697065507,1.37640129,4189.2,4189.1,22.2839]
[1758697067851,1.37640129,4189.2,4189.1,21.8269]
[1758697068947,1.37640129,4189.2,4189.1,21.6002]
[1758697078181,1.37640129,4189.2,4189.1,23.98734759]
[1758697078388,1.37640129,4189.2,4189.1,24.67564759]
[1758697080975,1.37640129,4189.2,4189.1,21.6002]
[1758697082583,1.37640129,4189.2,4189.1,17.504]
[1758697082784,1.37640129,4189.2,4189.1,21.481]
[1758697083387,1.37560129,4189.2,4189.1,21.481]
[1758697084209,1.37560129,4189.2,4189.1,21.9393]
[1758697084398,1.37560129,4189.2,4189.1,24.32644759]
[1758697084598,1.37560129,4189.2,4189.1,21.481]
[1758697085200,1.37560129,4189.2,4189.1,17.504]
[1758697085524,1.37560129,4189.2,4189.1,21.48]
[1758697087721,1.37560129,4189.2,4189.1,6.98]
[1758697088429,4.86768937,4189.2,4189.1,3.98]
[1758697088623,4.94158937,4189.2,4189.1,6.98]
[1758697089127,4.29674942,4189.2,4189.1,0.004]
[1758697092893,5.08874942,4189.2,4189.1,0.004]
[1758697093992,6.37846497,4189.2,4189.1,0.004]
[1758697094222,5.08874942,4189.2,4189.1,0.004]
[1758697094401,6.37846497,4189.2,4189.1,0.004]
[1758697095220,6.37593364,4189.2,4189.1,0.004]
[1758697097324,5.08874942,4189.2,4189.1,0.004]
[1758697099952,5.01584942,4189.2,4189.1,0.004]
[1758697100118,8.20084942,4189.2,4189.1,0.004]
[1758697108231,4.22384942,4189.2,4189.1,0.004]
[1758697108535,4.22384942,4189.2,4189.1,0.6628]
[1758697109426,4.22384942,4189.2,4189.1,0.004]
[1758697110467,4.22304942,4189.2,4189.1,0.004]
[1758697111540,4.22304942,4189.2,4189.1,0.2353]
[1758697112471,1.49500129,4189.2,4189.1,0.6628]
[1758697112653,0.60943474,4189.2,4189.1,0.6628]
[1758697113041,0.60943474,4189.2,4189.1,20.54994759]
[1758697113242,0.13443474,4189.2,4189.1,20.54994759]
[1758697115541,0.13443474,4189.2,4189.1,18.1628]
[1758697115745,0.13443474,4189.2,4189.1,20.54994759]
[1758697116658,0.13443474,4189.2,4189.1,18.1628]
[1758697117469,0.13443474,4189.2,4189.1,20.54994759]
[1758697118069,0.13443474,4189.2,4189.1,24.52594759]
[1758697119878,0.13443474,4189.2,4189.1,22.1388]
[1758697120964,0.13443474,4189.2,4189.1,24.52594759]
[1758697121460,0.13443474,4189.2,4189.1,22.1388]
[1758697121667,0.13443474,4189.2,4189.1,17.504]
[1758697121905,0.13443474,4189.2,4189.1,3.004]
[1758697122116,3.73316131,4189.2,4189.1,0.004]
[1758697122267,4.40960809,4189.2,4189.1,0.004]
[1758697123801,3.71260809,4189.2,4189.1,0.004]
[1758697124291,4.40960809,4189.2,4189.1,0.004]
[1758697124895,4.40960809,4189.2,4189.1,3.004]
[1758697127169,5.05290304,4189.2,4189.1,3.004]
[1758697127969,4.35590304,4189.2,4189.1,3.004]
[1758697128404,3.71260809,4189.2,4189.1,3.004]
[1758697131070,4.35590304,4189.2,4189.1,3.004]
[1758697132326,4.35590304,4189.2,4189.1,0.004]
[1758697132327,4.40960809,4189.2,4189.1,0.004]
[1758697132821,3.94670809,4189.2,4189.1,0.004]
[1758697133819,3.71260809,4189.2,4189.1,0.004]
[1758697134930,7.68860809,4189.2,4189.1,0.004]
[1758697137523,7.68780809,4189.2,4189.1,0.004]
[1758697138297,3.71180809,4189.2,4189.1,0.004]
[1758697138901,4.40880809,4189.2,4189.1,0.004]
[1758697142926,3.94590809,4189.2,4189.1,0.004]
[1758697143604,3.71180809,4189.2,4189.1,0.004]
[1758697144842,3.71180809,4189.2,4189.1,0.2398]
[1758697145052,3.71180809,4189.2,4189.1,0.004]
[1758697147052,10.05619775,4189.2,4189.1,0.004]
[1758697147460,9.35919775,4189.2,4189.1,0.004]
[1758697148629,3.71180809,4189.2,4189.1,0.004]
[1758697150331,4.99899231,4189.2,4189.1,0.004]
[1758697152329,3.71180809,4189.2,4189.1,0.004]
[1758697156449,4.41880809,4189.2,4189.1,0.004]
[1758697156961,3.95750809,4189.2,4189.1,0.004]
[1758697157177,3.71180809,4189.2,4189.1,0.004]
[1758697157586,3.95750809,4189.2,4189.1,0.004]
[1758697158083,3.71180809,4189.2,4189.1,0.004]
[1758697162267,2.38726157,4188.9,4188.8,18.1731]
[1758697162489,2.90189753,4188.9,4188.8,18.1731]
[1758697163287,2.90189753,4188.9,4188.8,0.6731]
[1758697163766,2.90189753,4188.9,4188.8,18.1731]
[1758697164767,2.90109753,4188.9,4188.8,18.1731]
[1758697165096,0.51463596,4188.9,4188.8,18.1731]
[1758697165600,3.02109753,4188.9,4188.8,18.1731]
[1758697166905,0.63383596,4188.9,4188.8,18.1731]
[1758697167200,3.02109753,4188.9,4188.8,18.1731]
[1758697168687,0.63383596,4188.9,4188.8,18.1731]
[1758697168882,3.02109753,4188.9,4188.8,18.1771]
[1758697169406,0.63383596,4188.9,4188.8,18.1771]
[1758697170911,0.63383596,4188.9,4188.8,20.56441856]
[1758697173088,0.51463596,4188.9,4188.8,20.56441856]
[1758697175411,0.13363474,4189.2,4189.1,2.38714759]
[1758697175611,0.13363474,4189.2,4189.1,9.38501906]
[1758697175920,0.13363474,4189.2,4189.1,10.03424759]
[1758697176081,0.13363474,4189.2,4189.1,24.53424759]
[1758697177529,0.13363474,4189.2,4189.1,17.5]
[1758697177829,0.13363474,4189.2,4189.1,22.1471]
[1758697178714,0.13363474,4189.2,4189.1,18.1731]
[1758697178918,0.13363474,4189.2,4189.1,21.474]
[1758697179216,0.13363474,4189.2,4189.1,22.1471]
[1758697182522,0.13363474,4189.2,4189.1,24.53424759]
[1758697183018,0.13363474,4189.2,4189.1,22.1471]
[1758697183516,0.13363474,4189.2,4189.1,24.53424759]
[1758697184930,0.13363474,4189.2,4189.1,22.1471]
[1758697187126,0.13363474,4189.2,4189.1,24.53424759]
[1758697188444,0.13363474,4189.2,4189.1,22.1471]
[1758697189959,0.13363474,4189.2,4189.1,21.7051]
[1758697190459,0.13363474,4189.2,4189.1,22.1664]
[1758697191549,0.13363474,4189.2,4189.1,21.7051]
[1758697191857,0.13283474,4189.2,4189.1,21.7051]
[1758697192426,0.13283474,4189.2,4189.1,17.5]
[1758697192634,0.13283474,4189.2,4189.1,21.473]
[1758697192937,0.25203474,4189.2,4189.1,21.473]
[1758697193332,0.76708953,4189.2,4189.1,21.473]
[1758697193941,3.15418014,4189.2,4189.1,17.5]
[1758697194175,3.15418014,4189.2,4189.1,18.473]
[1758697194176,3.87548953,4189.2,4189.1,18.473]
[1758697194330,3.03498014,4189.2,4189.1,21.473]
[1758697195378,0.64788953,4189.2,4189.1,21.473]
[1758697195767,3.13498014,4189.2,4189.1,21.473]
[1758697197066,0.74788953,4189.2,4189.1,21.473]
[1758697198381,3.13498014,4189.2,4189.1,21.473]
[1758697199180,0.74788953,4189.2,4189.1,21.473]
[1758697199379,0.74788953,4189.2,4189.1,21.7046]
[1758697199747,0.74788953,4189.2,4189.1,22.1659]
[1758697200166,0.74788953,4189.2,4189.1,21.7046]
[1758697200366,0.74788953,4189.2,4189.1,22.1659]
[1758697201100,0.23283474,4189.2,4189.1,22.1659]
[1758697201486,0.74851142,4189.2,4189.1,22.1659]
[1758697202001,0.23283474,4189.2,4189.1,24.55304759]
[1758697202161,0.23283474,4189.2,4189.1,22.1659]
[1758697205904,0.23283474,4189.2,4189.1,21.7046]
[1758697206404,0.23283474,4189.2,4189.1,22.1659]
[1758697209214,0.23283474,4189.2,4189.1,24.55304759]
[1758697209615,0.23283474,4189.2,4189.1,24.67224759]
[1758697211413,0.23283474,4189.2,4189.1,23.5802]
[1758697211619,0.23283474,4189.2,4189.1,24.2776]
[1758697212311,0.23283474,4189.2,4189.1,26.66474759]
[1758697212511,0.23283474,4189.2,4189.1,24.2776]
[1758697213486,0.23283474,4189.2,4189.1,17.6192]
[1758697213731,0.23283474,4189.2,4189.1,21.5912]
[1758697213907,0.23283474,4189.2,4189.1,21.8365]
[1758697214204,0.23283474,4189.2,4189.1,22.2886]
[1758697214402,0.23283474,4189.2,4189.1,24.67574759]
[1758697216035,0.23283474,4189.2,4189.1,24.90858233]
[1758697217938,0.23283474,4189.2,4189.1,24.22374759]
[1758697218532,0.23283474,4189.2,4189.1,24.68114759]
[1758697218944,0.23203474,4189.2,4189.1,24.68114759]
[1758697219409,0.23203474,4189.2,4189.1,26.67014759]
[1758697220320,0.23203474,4189.2,4189.1,26.21274759]
[1758697220527,0.23203474,4189.2,4189.1,17.6192]
[1758697220745,0.23203474,4189.2,4189.1,21.5912]
[1758697221948,0.23203474,4189.2,4189.1,23.97834759]
[1758697222450,0.23203474,4189.2,4189.1,21.5912]
[1758697222944,0.23203474,4189.2,4189.1,21.5952]
[1758697223149,0.23203474,4189.2,4189.1,17.6232]
[1758697223323,0.23203474,4189.2,4189.1,21.5952]
[1758697223527,0.23203474,4189.2,4189.1,23.98234759]
[1758697223854,0.23203474,4189.2,4189.1,21.5952]
[1758697224920,0.23203474,4189.2,4189.1,23.98234759]
[1758697225125,0.23203474,4189.2,4189.1,24.68514759]
[1758697227337,0.23203474,4189.2,4189.1,22.298]
[1758697227561,0.23203474,4189.2,4189.1,24.68514759]
[1758697228830,0.23203474,4189.2,4189.1,20.71314759]
[1758697229070,0.23203474,4189.2,4189.1,26.67314759]
[1758697233584,0.23203474,4189.2,4189.1,20.01034759]
[1758697233888,0.23203474,4189.2,4189.1,26.67314759]
[1758697234677,0.23203474,4189.2,4189.1,26.21574759]
[1758697234880,0.23203474,4189.2,4189.1,26.67314759]
[1758697235450,0.23203474,4189.2,4189.1,20.01034759]
[1758697235688,0.23203474,4189.2,4189.1,26.20238233]
[1758697235890,0.23203474,4189.2,4189.1,26.44778233]
[1758697236752,0.23203474,4189.2,4189.1,26.90518233]
[1758697240998,0.23203474,4189.2,4189.1,20.24238233]
[1758697241193,0.23203474,4189.2,4189.1,25.97034759]
[1758697241656,0.23203474,4189.2,4189.1,23.98134759]
[1758697241857,0.23203474,4189.2,4189.1,25.97034759]
[1758697243402,0.23203474,4189.2,4189.1,23.98134759]
[1758697243567,0.23203474,4189.2,4189.1,25.97034759]
[1758697246128,0.23123474,4189.2,4189.1,25.97034759]
[1758697252006,0.23123474,4189.2,4189.1,26.21524759]
[1758697252724,0.23123474,4189.2,4189.1,26.65004759]
[1758697255531,1e-08,4189.2,4189.1,26.65004759]
[1758697255944,0.001,4189.7,4189.2,5.38709061]
[1758697256256,0.001,4189.7,4189.5,2.38691968]
[1758697256533,0.001,4189.7,4189.6,23.99993132]
[1758697256738,0.001,4189.7,4189.6,24.6557627]
[1758697256928,0.001,4189.7,4189.6,24.5365627]
[1758697257326,0.001,4189.7,4189.6,19.8868627]
[1758697257528,0.001,4189.7,4189.6,26.5255627]
[1758697261812,0.001,4189.7,4189.6,23.8568627]
[1758697262012,0.001,4189.7,4189.6,25.8448627]
[1758697262240,0.001,4189.7,4189.6,26.0897627]
[1758697262444,0.001,4189.7,4189.6,19.8868627]
[1758697262944,0.001,4189.7,4189.6,25.8448627]
[1758697264346,0.001,4189.7,4189.6,19.8868627]
[1758697264545,0.001,4189.7,4189.6,25.8448627]
[1758697264746,0.001,4189.7,4189.6,26.0897627]
[1758697264915,0.001,4189.7,4189.6,22.1197627]
[1758697265115,0.001,4189.7,4189.6,26.0887627]
[1758697266619,0.001,4189.7,4189.6,31.73106475]
[1758697266822,0.001,4189.7,4189.6,25.89326475]
[1758697267017,0.001,4189.7,4189.6,31.85026475]
[1758697267654,0.001,4189.7,4189.6,31.60536475]
[1758697268238,0.001,4189.7,4189.6,31.85026475]
[1758697271030,0.001,4189.7,4189.6,20.0060627]
[1758697271229,0.4526,4189.7,4188.8,0.004]
[1758697271434,0.51482836,4189.6,4189.2,0.022]
[1758697271716,2.38697665,4189.4,4188.8,0.004]
[1758697271932,2.38709061,4189.2,4188.8,0.004]
[1758697272133,2.90199265,4189.2,4189.1,2.716]
[1758697272454,3.60989265,4189.2,4189.1,5.716]
[1758697272630,3.60989265,4189.2,4189.1,3.004]
[1758697272963,2.38714759,4189.1,4189.0,3.969]
[1758697273260,3.60914963,4189.1,4189.0,3.969]
[1758697273434,2.38720458,4189.0,4188.8,3.973]
[1758697273624,2.38720458,4189.0,4188.8,18.473]
[1758697273625,3.54522831,4188.9,4188.8,18.473]
[1758697273820,4.23282831,4188.9,4188.8,18.473]
[1758697274025,4.97210305,4188.9,4188.8,18.473]
[1758697274254,4.32903835,4188.9,4188.8,3.973]
[1758697274556,4.32903835,4188.9,4188.6,0.004]
[1758697274557,0.792,4188.7,4188.6,0.004]
[1758697274750,9.33657964,4188.7,4188.6,0.004]
[1758697274945,5.93567534,4188.7,4188.6,0.004]
[1758697275459,5.02401979,4188.7,4188.6,0.004]
[1758697275953,4.23201979,4188.7,4188.6,0.004]
[1758697276171,3.58987759,4188.7,4188.6,0.004]
[1758697276729,0.6876,4188.7,4188.6,0.004]
[1758697276941,3.07497555,4188.7,4188.6,0.004]
[1758697277154,1.35923801,4188.7,4188.6,0.004]
[1758697277728,0.67163801,4188.7,4188.6,0.004]
[1758697277929,0.2377,4188.7,4188.6,0.004]
[1758697278341,0.6876,4188.7,4188.6,0.004]
[1758697278844,3.07497555,4188.7,4188.6,0.004]
[1758697281787,0.6876,4188.7,4188.6,0.004]
[1758697281949,3.07497555,4188.7,4188.6,0.004]
[1758697282154,3.63077334,4188.7,4188.6,0.004]
[1758697285081,3.07497555,4188.7,4188.6,0.004]
[1758697285260,0.0957326,4188.8,4188.6,0.004]
[1758697285682,2.48310113,4188.8,4188.6,0.004]
[1758697286186,2.38737555,4188.7,4188.6,0.004]
[1758697286491,0.3334326,4188.8,4188.6,0.004]
[1758697286985,0.0957326,4188.8,4188.6,0.004]
[1758697287192,0.24829968,4188.7,4188.6,0.004]
[1758697287357,0.0957326,4188.8,4188.6,0.2399]
[1758697287561,0.0957326,4188.8,4188.7,3.971]
[1758697287783,0.1192,4189.0,4188.7,4.6625]
[1758697287989,0.1192,4189.0,4188.8,15.1915]
[1758697288598,0.83711031,4189.0,4188.8,15.1915]
[1758697288895,0.83711031,4189.0,4188.8,14.9556]
[1758697289101,0.83711031,4189.0,4188.9,0.6915]
[1758697289595,0.001,4189.7,4188.9,3.71537261]
[1758697289782,0.1192,4189.3,4189.0,6.59410092]
[1758697289982,0.83704331,4189.3,4189.1,0.71537147]
[1758697290196,0.1192,4189.3,4189.2,14.5]
[1758697290601,0.1192,4189.3,4189.2,18.471]
[1758697290784,2.50623363,4189.3,4189.2,18.471]
[1758697291095,1.36487864,4189.3,4189.2,18.471]
[1758697291296,3.19383363,4189.3,4189.2,18.471]
[1758697291502,0.8068,4189.3,4189.2,18.471]
[1758697291796,0.1192,4189.3,4189.2,18.471]
[1758697292091,0.1192,4189.3,4189.2,18.7069]
[1758697292285,0.1192,4189.3,4189.2,18.471]
[1758697292482,0.1202,4189.3,4189.2,18.9266]
[1758697292689,0.1202,4189.3,4189.2,19.1625]
[1758697293497,0.001,4189.3,4189.2,30.19189266]
[1758697294573,0.001,4189.3,4189.2,19.88709061]
[1758697294805,0.001,4189.3,4189.2,22.1615]
[1758697295007,0.001,4189.3,4189.2,21.47]
[1758697296407,0.001,4189.3,4189.2,21.7059]
[1758697296612,4.518e-05,4189.3,4189.2,21.7059]
[1758697297097,4.518e-05,4189.3,4189.2,21.47]
[1758697297475,4.518e-05,4189.3,4189.2,17.7359]
[1758697297675,4.518e-05,4189.3,4189.2,21.7059]
[1758697298302,4.518e-05,4189.3,4189.2,22.1615]
[1758697298979,4.518e-05,4189.3,4189.2,21.47]
[1758697299222,4.518e-05,4189.3,4189.2,6.97]
[1758697299718,4.518e-05,4189.3,4189.2,21.47]
[1758697299916,4.518e-05,4189.3,4189.2,17.5]
[1758697300085,0.23774518,4189.3,4189.2,21.47]
[1758697300280,0.23694518,4189.3,4189.2,21.47]
[1758697300486,1.28691926,4189.5,4189.2,21.47]
[1758697300706,0.83701926,4189.5,4189.2,21.47]
[1758697301107,0.83701926,4189.5,4189.2,21.9256]
[1758697301308,0.83701926,4189.5,4189.2,22.1615]
[1758697302248,0.83701926,4189.5,4189.2,21.9256]
[1758697302453,0.83701926,4189.5,4189.3,0.2467]
[1758697302614,0.83701926,4189.5,4189.4,6.97]
[1758697304149,0.83701926,4189.5,4189.4,3.0]
[1758697304450,3.90753894,4189.5,4189.4,3.97]
[1758697304646,4.42124197,4189.5,4189.4,3.97]
[1758697304951,3.90753894,4189.5,4189.4,3.97]
[1758697305112,4.42124197,4189.5,4189.4,3.97]
[1758697305744,2.03432229,4189.5,4189.4,3.97]
[1758697306044,3.73764197,4189.5,4189.4,3.97]
[1758697307269,1.35072229,4189.5,4189.4,4.6677]
[1758697308425,1.35072229,4189.5,4189.4,19.1677]
[1758697308745,0.51370303,4189.5,4189.4,22.1677]
[1758697309084,0.51370303,4189.6,4189.4,22.1677]
[1758697309260,0.51447024,4189.6,4189.5,3.6977]
[1758697309453,0.51547024,4189.7,4189.5,3.6977]
[1758697309653,0.51547024,4189.7,4189.6,6.97]
[1758697309820,0.51547024,4189.7,4189.6,7.6677]
[1758697312038,0.51547024,4189.7,4189.6,3.0]
[1758697312435,0.51547024,4189.7,4189.6,6.97]
[1758697312838,0.51547024,4189.7,4189.6,21.7167]
[1758697313369,0.51547024,4189.7,4189.6,22.1677]
[1758697313931,0.51547024,4189.7,4189.6,21.47]
[1758697316733,0.51547024,4189.7,4189.6,22.1677]
[1758697317500,3.26882171,4189.7,4189.1,0.1192]
[1758697317650,3.26882171,4189.7,4188.4,0.004]
[1758697317651,0.792,4189.1,4188.4,0.004]
[1758697317980,8.8217916,4188.5,4188.4,0.004]
[1758697318134,7.67895979,4188.5,4188.4,0.004]
[1758697318333,8.36255979,4188.5,4188.4,0.004]
[1758697318655,5.55281988,4188.5,4188.4,0.004]
[1758697318828,7.57055979,4188.5,4188.4,0.004]
[1758697319028,7.66630499,4188.5,4188.4,0.004]
[1758697319232,8.5243147,4188.5,4188.4,0.004]
[1758697320357,8.0898147,4188.5,4188.4,0.004]
[1758697320699,7.8407147,4188.5,4188.4,0.004]
[1758697320993,9.50902008,4188.5,4188.4,0.004]
[1758697321297,8.65101037,4188.5,4188.4,0.004]
[1758697323083,4.41691037,4188.5,4188.4,0.004]
[1758697323283,0.61021544,4188.5,4188.4,0.004]
[1758697323696,2.99770499,4188.5,4188.4,0.004]
[1758697324092,0.61021544,4188.5,4188.4,0.2507]
[1758697324264,0.61021544,4188.5,4188.4,0.7017]
[1758697324706,0.51447024,4188.5,4188.4,0.7017]
[1758697325466,0.51447024,4188.6,4188.4,0.7017]
[1758697325867,0.51447024,4188.6,4188.5,0.451]
[1758697326081,0.51447024,4188.7,4188.5,0.6977]
[1758697326302,0.51447024,4188.8,4188.4,0.004]
[1758697326614,2.38747589,4188.6,4188.4,0.004]
[1758697327365,2.38667589,4188.6,4188.4,0.004]
[1758697327667,0.1192,4188.5,4188.4,0.004]
[1758697329696,2.50668955,4188.5,4188.4,0.004]
[1758697331113,3.36464764,4188.5,4188.4,0.004]
[1758697331313,3.11554764,4188.5,4188.4,0.004]
[1758697332406,2.50668955,4188.5,4188.4,0.004]
[1758697334117,3.02115979,4188.5,4188.4,0.004]
[1758697335317,3.24765979,4188.5,4188.4,0.004]
[1758697335730,3.02115979,4188.5,4188.4,0.004]
[1758697337098,3.24765979,4188.5,4188.4,0.004]
[1758697337296,4.72957364,4188.5,4188.4,0.004]
[1758697337933,1.66348409,4188.5,4188.4,0.004]
[1758697338136,0.1192,4188.5,4188.4,0.004]
[1758697338433,0.1192,4188.5,4188.4,0.6824]
[1758697338936,0.1192,4188.5,4188.4,0.2499]
[1758697339161,2.50668955,4188.5,4188.4,0.004]
[1758697339328,3.20694791,4188.5,4188.4,0.004]
[1758697339901,0.81945836,4188.5,4188.4,0.004]
[1758697340297,1.33335236,4188.5,4188.4,0.004]
[1758697342299,0.633094,4188.5,4188.4,0.004]
[1758697342506,0.633094,4188.5,4188.4,0.2499]
[1758697344751,0.633094,4188.5,4188.4,0.004]
[1758697347747,4.34390547,4188.5,4188.4,0.004]
[1758697348046,5.292694,4188.5,4188.4,0.004]
[1758697348344,5.7785463,4188.5,4188.4,0.004]
[1758697349409,5.87428577,4188.5,4188.4,0.004]
[1758697349813,1.89328577,4188.5,4188.4,0.004]
[1758697350113,0.72883347,4188.5,4188.4,0.6824]
[1758697350418,0.72883347,4188.5,4188.4,0.004]
[1758697350940,0.72883347,4188.5,4188.4,0.6824]
[1758697351134,0.72883347,4188.5,4188.4,0.2499]
[1758697351447,0.72883347,4188.5,4188.4,0.004]
[1758697351657,1.28591779,4188.5,4188.4,0.004]
[1758697352252,3.67340734,4188.5,4188.4,0.004]
[1758697353056,5.21001705,4188.5,4188.4,0.004]